fUST/lending_fUST_20250303
["ID","MTS","AMOUNT","RATE_DAILY","PERIOD"]
[355176581,1740946991372,-5237.78118486,0.0002216,14]
[355176678,1740947432481,-281.994966,0.0002006,2]
[355176742,1740947438358,-231.19299027,0.0002006,2]
[355176743,1740947438369,-250.0,0.00020928,2]
[355176744,1740947438381,-2599.86018639,0.00020945,2]
[355176746,1740947438412,-18830.0,0.00020945,2]
[355176747,1740947438427,-939.63810718,0.00020945,2]
[355176778,1740947440515,-2530.50170643,0.00020945,2]
[355176779,1740947440528,-172.17896009,0.0002186,2]
[355176780,1740947440540,-266.20684897,0.00021899,2]
[355176781,1740947440553,-436.53725164,0.00021899,2]
[355176782,1740947440565,-3249.02528507,0.000219,3]
[355176783,1740947440581,-561.42069245,0.000219,3]
[355176784,1740947440594,-500.0,0.0002196,2]
[355176785,1740947440607,-500.0,0.0002196,2]
[355176786,1740947440618,-500.0,0.0002196,2]
[355176787,1740947440629,-500.0,0.0002196,2]
[355176789,1740947440639,-500.0,0.0002196,2]
[355176790,1740947440650,-500.0,0.0002196,2]
[355176791,1740947440660,-500.0,0.0002196,2]
[355176792,1740947440671,-160.43,0.0002196,2]
[355176793,1740947440684,-500.0,0.0002196,2]
[355176794,1740947440697,-624.9593245,0.0002196,2]
[355176795,1740947440708,-500.0,0.0002196,2]
[355176796,1740947440721,-500.0,0.0002196,2]
[355176797,1740947440734,-500.0,0.0002196,2]
[355176799,1740947440746,-500.0,0.0002196,2]
[355176800,1740947440758,-500.0,0.0002196,2]
[355176801,1740947440769,-516.57,0.0002196,2]
[355176802,1740947440780,-500.0,0.0002196,2]
[355176803,1740947440791,-500.0,0.0002196,2]
[355176804,1740947440802,-500.0,0.0002196,2]
[355176805,1740947440815,-500.0,0.0002196,2]
[355176806,1740947440826,-500.0,0.0002196,2]
[355176807,1740947440837,-500.0,0.0002196,2]
[355176808,1740947440849,-500.0,0.0002196,2]
[355176809,1740947440861,-500.0,0.0002196,2]
[355176810,1740947440872,-500.0,0.0002196,2]
[355176811,1740947440883,-500.0,0.0002196,2]
[355176812,1740947440894,-500.0,0.0002196,2]
[355176813,1740947440904,-473.58352127,0.0002196,2]
[355176814,1740947440915,-215.85902272,0.0002196,2]
[355176815,1740947440926,-5605.83135218,0.00021961,3]
[355176874,1740947446647,-1739.2434053,0.0002,2]
[355176906,1740947631867,-151.0,0.00021961,7]
[355176907,1740947631890,-151.0,0.00021961,7]
[355176908,1740947631912,-328.933667,0.00021966,7]
[355176909,1740947631934,-328.933667,0.00021966,7]
[355176910,1740947631957,-328.933667,0.0002206,7]
[355176911,1740947631980,-328.933667,0.0002206,7]
[355176912,1740947632002,-164.18,0.000222,7]
[355176913,1740947632025,-328.933667,0.00022234,7]
[355176914,1740947632046,-328.933667,0.00022234,7]
[355176915,1740947632068,-328.933667,0.00022334,7]
[355176916,1740947632092,-328.933667,0.00022334,7]
[355176917,1740947632114,-328.933667,0.00022508,7]
[355176918,1740947632135,-328.933667,0.00022508,7]
[355176919,1740947632156,-328.933667,0.00022608,7]
[355176920,1740947632177,-328.933667,0.00022608,7]
[355176921,1740947632199,-328.933667,0.00022782,7]
[355176922,1740947632220,-328.933667,0.00022782,7]
[355176923,1740947632242,-328.933667,0.00022882,7]
[355176924,1740947632263,-328.933667,0.00022882,7]
[355176925,1740947662450,151.0,0.00021961,7]
[355176926,1740947662711,151.0,0.00021961,7]
[355176927,1740947663098,151.0,0.0002206,7]
[355176928,1740947663427,151.0,0.00022234,7]
[355176929,1740947663815,151.0,0.00022234,7]
[355176930,1740947664134,151.0,0.00022508,7]
[355176931,1740947664446,151.0,0.00022608,7]
[355176932,1740947664739,151.0,0.00022782,7]
[355176933,1740947665043,151.0,0.00022882,7]
[355176934,1740947709562,164.18,0.00022,7]
[355176935,1740947727250,151.0,0.0002195,7]
[355176936,1740947727582,151.0,0.0002196,7]
[355176937,1740947727877,151.0,0.00021961,7]
[355176938,1740947728174,151.0,0.00021961,7]
[355176939,1740947728471,212.045224,0.00022234,7]
[355176940,1740947728724,25704.656104,0.0002282,7]
[355176978,1740948632916,-291.08922662,0.0002072,2]
[355176979,1740948632928,-51.03607756,0.0002072,2]
[355176980,1740948632938,-198.80392244,0.00020831,2]
[355176981,1740948632949,-51.19607756,0.00020831,2]
[355176982,1740948632959,-20474.65844089,0.00020855,2]
[355177000,1740948638594,-1228.77770043,0.00020855,2]
[355177001,1740948638607,-1203.95319133,0.00020855,2]
[355177044,1740949012188,-1000.0,0.00021961,14]
[355177045,1740949012211,-1000.0,0.00021961,14]
[355177046,1740949012234,-1000.0,0.00021961,14]
[355177047,1740949012256,-1000.0,0.00021961,14]
[355177048,1740949012279,-1000.0,0.00021961,14]
[355177049,1740949012301,-1000.0,0.00021961,14]
[355177050,1740949012323,-1000.0,0.00021961,14]
[355177051,1740949012346,-1000.0,0.00021961,14]
[355177052,1740949012369,-1000.0,0.00021961,14]
[355177053,1740949012392,-1000.0,0.00021961,14]
[355177054,1740949012414,-1000.0,0.00021961,14]
[355177055,1740949012438,-1000.0,0.00021961,14]
[355177056,1740949012460,-1000.0,0.00021961,14]
[355177057,1740949012484,-1000.0,0.00021961,14]
[355177058,1740949012506,-1000.0,0.00021961,14]
[355177059,1740949012528,-1000.0,0.00021961,14]
[355177060,1740949012551,-1000.0,0.00021961,14]
[355177061,1740949012572,-1000.0,0.00021961,14]
[355177062,1740949012595,-1000.0,0.00021961,14]
[355177063,1740949012618,-1000.0,0.00021961,14]
[355177064,1740949012640,-1000.0,0.00021961,14]
[355177065,1740949012662,-1000.0,0.00021961,14]
[355177066,1740949012683,-1000.0,0.00021961,14]
[355177067,1740949012704,-1000.0,0.00021961,14]
[355177068,1740949012726,-1000.0,0.00021961,14]
[355177069,1740949012747,-1000.0,0.00021961,14]
[355177070,1740949012772,-1000.0,0.00021961,14]
[355177071,1740949012794,-1000.0,0.00021961,14]
[355177072,1740949012817,-1000.0,0.00021961,14]
[355177073,1740949012839,-1000.0,0.00021961,14]
[355177074,1740949012863,-1000.0,0.00021961,14]
[355177075,1740949012885,-1000.0,0.00021961,14]
[355177076,1740949012906,-1000.0,0.00021961,14]
[355177077,1740949012927,-1000.0,0.00021961,14]
[355177078,1740949012954,-1000.0,0.00021961,14]
[355177079,1740949012976,-1000.0,0.00021961,14]
[355177080,1740949012998,-1000.0,0.00021961,14]
[355177081,1740949013019,-960.847776,0.00021961,14]
[355177097,1740949281709,-677.0,0.000219,60]
[355177106,1740949516038,-151.91589712,0.00020779,14]
[355177107,1740949657480,-180.168176,0.0002195,7]
[355177108,1740949657503,-286.177227,0.0002195,7]
[355177109,1740949657526,-151.0,0.0002195,7]
[355177110,1740949657548,-82.654597,0.0002195,7]
[355177166,1740949837879,-500.0,0.00019021,2]
[355177167,1740949837901,-500.0,0.00019021,2]
[355177168,1740949837928,-500.0,0.00019021,2]
[355177169,1740949837940,-902.09952528,0.00019021,2]
[355177170,1740949837952,-228.08353612,0.00019861,2]
[355177171,1740949837964,-230.4371148,0.00020779,2]
[355177172,1740949837975,-5396.79906314,0.00020945,2]
[355177216,1740949843082,-19503.20093686,0.00020945,2]
[355177217,1740949843092,-350.01117175,0.00021499,2]
[355177218,1740949843101,-179.44382825,0.00021499,2]
[355177219,1740949843112,-1400.0,0.000215,2]
[355177220,1740949843121,-172.17896009,0.00021649,2]
[355177221,1740949843133,-501.1013159,0.00021749,2]
[355177222,1740949843143,-500.0,0.00021749,2]
[355177223,1740949843153,-181.50846489,0.00021749,2]
[355177224,1740949843164,-3520.64891381,0.0002175,2]
[355177232,1740949843615,-218479.35108619,0.0002175,2]
[355177233,1740949843626,-468.80895746,0.00021769,2]
[355177234,1740949843636,-203.66682887,0.0002185,2]
[355177235,1740949843647,-1500.0,0.000219,2]
[355177236,1740949843657,-3708.56530647,0.000219,3]
[355177237,1740949843666,-500.0,0.00021917,2]
[355177238,1740949843677,-500.0,0.00021917,2]
[355177239,1740949843687,-500.0,0.00021917,2]
[355177240,1740949843697,-500.0,0.00021917,2]
[355177241,1740949843707,-500.0,0.00021917,2]
[355177242,1740949843717,-500.0,0.00021917,2]
[355177243,1740949843727,-500.0,0.00021917,2]
[355177244,1740949843737,-500.0,0.00021917,2]
[355177245,1740949843748,-500.0,0.00021917,2]
[355177246,1740949843758,-500.0,0.00021917,2]
[355177247,1740949843768,-503.85523431,0.00021917,2]
[355177248,1740949843778,-500.0,0.00021917,2]
[355177249,1740949843788,-331.1434345,0.00021917,2]
[355177250,1740949843798,-500.0,0.00021917,2]
[355177251,1740949843808,-500.0,0.00021917,2]
[355177252,1740949843819,-500.0,0.00021917,2]
[355177253,1740949843830,-500.0,0.00021917,2]
[355177254,1740949843841,-618.78110803,0.00021917,2]
[355177255,1740949843850,-500.0,0.00021917,2]
[355177256,1740949843860,-500.0,0.00021917,2]
[355177257,1740949843870,-500.0,0.00021917,2]
[355177258,1740949843881,-257.78995802,0.00021917,2]
[355177259,1740949843891,-500.0,0.00021917,2]
[355177260,1740949843902,-500.0,0.00021917,2]
[355177261,1740949843912,-500.0,0.00021917,2]
[355177262,1740949843922,-500.0,0.00021917,2]
[355177263,1740949843932,-1000.0,0.00021917,2]
[355177264,1740949843942,-500.0,0.00021917,2]
[355177265,1740949843951,-500.0,0.00021917,2]
[355177266,1740949843962,-500.0,0.00021917,2]
[355177267,1740949843972,-500.0,0.00021917,2]
[355177268,1740949843981,-500.0,0.00021917,2]
[355177269,1740949843992,-500.0,0.00021917,2]
[355177270,1740949844001,-500.0,0.00021917,2]
[355177271,1740949844012,-500.0,0.00021917,2]
[355177272,1740949844022,-500.0,0.00021917,2]
[355177273,1740949844032,-500.0,0.00021917,2]
[355177274,1740949844043,-500.0,0.00021917,2]
[355177275,1740949844060,-513.06538257,0.00021917,2]
[355177276,1740949844072,-500.0,0.00021917,2]
[355177277,1740949844085,-500.0,0.00021917,2]
[355177278,1740949844095,-507.95315121,0.00021917,2]
[355177279,1740949844105,-500.0,0.00021917,2]
[355177280,1740949844114,-500.0,0.00021917,2]
[355177281,1740949844128,-500.0,0.00021917,2]
[355177282,1740949844138,-151.0,0.00021917,2]
[355177283,1740949844148,-151.0,0.00021917,2]
[355177284,1740949844158,-500.0,0.00021917,2]
[355177285,1740949844169,-500.0,0.00021917,2]
[355177286,1740949844179,-500.0,0.00021917,2]
[355177287,1740949844190,-151.0,0.00021917,2]
[355177288,1740949844200,-500.0,0.00021917,2]
[355177289,1740949844210,-151.0,0.00021917,2]
[355177290,1740949844221,-151.0,0.00021917,2]
[355177291,1740949844231,-500.0,0.00021917,2]
[355177292,1740949844240,-500.0,0.00021917,2]
[355177293,1740949844250,-151.0,0.00021917,2]
[355177294,1740949844260,-151.0,0.00021917,2]
[355177295,1740949844270,-250.0,0.00021917,2]
[355177296,1740949844280,-500.0,0.00021917,2]
[355177297,1740949844290,-500.0,0.00021917,2]
[355177298,1740949844299,-151.0,0.00021917,2]
[355177299,1740949844309,-151.0,0.00021917,2]
[355177300,1740949844318,-151.0,0.00021917,2]
[355177301,1740949844331,-151.0,0.00021917,2]
[355177302,1740949844340,-151.0,0.00021917,2]
[355177303,1740949844350,-151.0,0.00021917,2]
[355177304,1740949844359,-151.0,0.00021917,2]
[355177305,1740949844369,-151.0,0.00021917,2]
[355177306,1740949844378,-151.0,0.00021917,2]
[355177307,1740949844389,-151.0,0.00021917,2]
[355177308,1740949844398,-151.0,0.00021917,2]
[355177309,1740949844407,-151.072017,0.00021917,2]
[355177310,1740949844417,-500.0,0.00021917,2]
[355177311,1740949844427,-500.0,0.00021917,2]
[355177312,1740949844436,-500.0,0.00021917,2]
[355177313,1740949844446,-151.0,0.00021917,2]
[355177314,1740949844456,-500.0,0.00021917,2]
[355177315,1740949844465,-500.0,0.00021917,2]
[355177316,1740949844475,-500.0,0.00021917,2]
[355177317,1740949844485,-500.0,0.00021917,2]
[355177318,1740949844495,-500.0,0.00021917,2]
[355177319,1740949844505,-151.0,0.00021917,2]
[355177320,1740949844516,-151.0,0.00021917,2]
[355177321,1740949844526,-151.0,0.00021917,2]
[355177322,1740949844536,-151.0,0.00021917,2]
[355177323,1740949844547,-151.0,0.00021917,2]
[355177324,1740949844557,-151.0,0.00021917,2]
[355177325,1740949844567,-500.0,0.00021917,2]
[355177326,1740949844581,-151.0,0.00021917,2]
[355177327,1740949844592,-151.0,0.00021917,2]
[355177328,1740949844601,-151.0,0.00021917,2]
[355177329,1740949844612,-502.69755292,0.00021917,2]
[355177330,1740949844622,-500.0,0.00021917,2]
[355177331,1740949844632,-500.0,0.00021917,2]
[355177332,1740949844642,-151.0,0.00021917,2]
[355177333,1740949844652,-500.0,0.00021917,2]
[355177334,1740949844662,-151.0,0.00021917,2]
[355177335,1740949844847,-216.258372,0.00021917,2]
[355177336,1740949844871,-500.0,0.00021917,2]
[355177337,1740949844881,-500.0,0.00021917,2]
[355177338,1740949844891,-500.0,0.00021917,2]
[355177339,1740949844900,-500.0,0.00021917,2]
[355177340,1740949844910,-500.0,0.00021917,2]
[355177341,1740949844920,-500.0,0.00021917,2]
[355177342,1740949844930,-500.0,0.00021917,2]
[355177343,1740949844940,-299.940072,0.00021917,2]
[355177344,1740949844950,-500.0,0.00021917,2]
[355177345,1740949844960,-226.09921505,0.00021917,2]
[355177346,1740949844969,-500.0,0.00021917,2]
[355177347,1740949844979,-257.84,0.00021917,2]
[355177348,1740949844989,-500.0,0.00021917,2]
[355177349,1740949844999,-500.0,0.00021917,2]
[355177350,1740949845010,-500.0,0.00021917,2]
[355177351,1740949845019,-503.95055505,0.00021917,2]
[355177352,1740949845029,-500.0,0.00021917,2]
[355177353,1740949845041,-151.0,0.00021917,2]
[355177354,1740949845052,-500.0,0.00021917,2]
[355177355,1740949845062,-500.0,0.00021917,2]
[355177356,1740949845072,-500.0,0.00021917,2]
[355177357,1740949845083,-19629.85965445,0.0002195,3]
[355177358,1740949845092,-175641.30636364,0.0002195,2]
[355177368,1740949845772,-8062.1868357,0.0002195,2]
[355177491,1740951036738,-153.64,0.0001927,2]
[355177492,1740951036749,-300.0,0.00019279,2]
[355177493,1740951036758,-17.57601047,0.0001928,2]
[355177521,1740951037986,-1514.85183795,0.0001928,2]
[355177522,1740951038047,-23367.57215158,0.0001928,2]
[355177523,1740951038058,-973.87918647,0.0001985,2]
[355177524,1740951038068,-182.74239899,0.000199,2]
[355177525,1740951038077,-153.64,0.0001996,2]
[355177526,1740951038087,-153.64,0.00019963,2]
[355177527,1740951038098,-500.0,0.00019969,2]
[355177528,1740951038108,-500.0,0.00019969,2]
[355177530,1740951038118,-599.40560883,0.00019969,2]
[355177532,1740951038128,-500.0,0.00019969,2]
[355177534,1740951038137,-500.0,0.00019969,2]
[355177536,1740951038148,-500.0,0.00019969,2]
[355177538,1740951038158,-500.0,0.00019969,2]
[355177540,1740951038168,-500.0,0.00019969,2]
[355177542,1740951038178,-500.0,0.00019969,2]
[355177544,1740951038188,-500.0,0.00019969,2]
[355177546,1740951038198,-500.0,0.00019969,2]
[355177548,1740951038207,-610.0827657,0.00019969,2]
[355177550,1740951038217,-500.0,0.00019973,2]
[355177552,1740951038227,-480.03212683,0.00019973,2]
[355177554,1740951038237,-500.0,0.00019973,2]
[355177555,1740951038247,-500.0,0.00019973,2]
[355177556,1740951038257,-581.39287826,0.00019973,2]
[355177557,1740951038268,-500.0,0.00019973,2]
[355177558,1740951038278,-500.0,0.00019973,2]
[355177559,1740951038287,-500.0,0.00019973,2]
[355177560,1740951038297,-500.0,0.00019973,2]
[355177561,1740951038307,-151.07408773,0.00019973,2]
[355177562,1740951038317,-500.0,0.00019973,2]
[355177563,1740951038327,-500.0,0.00019973,2]
[355177564,1740951038336,-500.0,0.00019973,2]
[355177565,1740951038346,-500.0,0.00019973,2]
[355177566,1740951038355,-500.0,0.00019973,2]
[355177567,1740951038365,-153.64,0.00019978,2]
[355177568,1740951038375,-302.0,0.00019988,2]
[355177569,1740951038385,-153.64,0.0001999,2]
[355177570,1740951038395,-153.64,0.0001999,2]
[355177571,1740951038406,-477.05592542,0.00019999,2]
[355177572,1740951038415,-350.77092113,0.00019999,2]
[355177573,1740951038427,-482780.91339536,0.0002,2]
[355177574,1740951038440,-25704.0,0.0002,2]
[355177575,1740951038450,-74296.0,0.0002,2]
[355177576,1740951038460,-2000.0,0.00020394,4]
[355177577,1740951038469,-500.0,0.00020993,2]
[355177578,1740951038481,-3584.94646295,0.000211,2]
[355177579,1740951038491,-182.74239895,0.0002115,2]
[355177580,1740951038502,-151.0,0.0002185,2]
[355177581,1740951038513,-151.0,0.0002185,2]
[355177582,1740951038524,-219.345403,0.0002185,2]
[355177583,1740951038534,-151.0,0.0002185,2]
[355177584,1740951038544,-151.0,0.0002185,2]
[355177585,1740951038553,-46239.93416462,0.0002185,2]
[355177600,1740951040174,-1512.81684643,0.0002185,2]
[355177617,1740951043393,-820.32088085,0.0002185,2]
[355177618,1740951043405,-1401.69703633,0.0002185,2]
[355177619,1740951043417,-938.364,0.0002185,2]
[355177620,1740951043434,-1398.805238,0.0002185,2]
[355177621,1740951043520,-943.2152442,0.0002185,2]
[355177644,1740951046240,-7276.03555333,0.0002185,2]
[355177679,1740951656579,277.3756523,0.0002,12]
[355177790,1740952232453,-151.0,0.00018,2]
[355177791,1740952232464,-649.25279098,0.000189,2]
[355177792,1740952232476,-500.0,0.00019021,2]
[355177793,1740952232487,-500.0,0.00019021,2]
[355177794,1740952232496,-500.0,0.00019021,2]
[355177795,1740952232507,-500.0,0.00019021,2]
[355177796,1740952232517,-995.80094944,0.00019021,2]
[355177797,1740952232527,-500.0,0.00019021,2]
[355177798,1740952232537,-500.0,0.00019021,2]
[355177799,1740952232547,-500.0,0.00019021,2]
[355177800,1740952232557,-500.0,0.00019021,2]
[355177801,1740952232567,-902.09952528,0.00019021,2]
[355177802,1740952232578,-151.0,0.000194,2]
[355177803,1740952232588,-500.0,0.00019687,2]
[355177804,1740952232598,-233.26728987,0.00019687,2]
[355177805,1740952232609,-500.0,0.00019687,2]
[355177806,1740952232620,-173.06443507,0.00019687,2]
[355177807,1740952232630,-500.0,0.00019687,2]
[355177808,1740952232640,-394.81142789,0.00019687,2]
[355177809,1740952232650,-10858.00683259,0.00019688,2]
[355177810,1740952232671,-14041.99316741,0.00019688,2]
[355177811,1740952232683,-172.17896009,0.00019873,2]
[355177812,1740952232693,-325.71786742,0.00019973,2]
[355177813,1740952232703,-500.0,0.00019973,2]
[355177814,1740952232713,-500.0,0.00019973,2]
[355177815,1740952232723,-500.0,0.00019973,2]
[355177816,1740952232737,-500.0,0.00019973,2]
[355177817,1740952232747,-500.0,0.00019973,2]
[355177818,1740952232758,-333.9391478,0.00019999,2]
[355177819,1740952232767,-171.87775135,0.00019999,2]
[355177820,1740952232778,-67608.83753255,0.0002,2]
[355177821,1740952232789,-151.0,0.000208,4]
[355177822,1740952232799,-3465.44824747,0.00021,2]
[355177823,1740952232809,-8619.3742618,0.00021554,2]
[355177824,1740952232819,-151.0,0.00021737,2]
[355177825,1740952232830,-200.0,0.00021737,2]
[355177826,1740952232841,-396.13925025,0.00021737,2]
[355177827,1740952232851,-222000.0,0.0002175,2]
[355177828,1740952232861,-500.0,0.00021773,2]
[355177829,1740952232871,-500.0,0.00021773,2]
[355177830,1740952232883,-250.0,0.00021917,2]
[355177831,1740952232892,-172.81266009,0.00021917,2]
[355177832,1740952232903,-500.0,0.00021917,2]
[355177833,1740952232913,-500.0,0.00021917,2]
[355177834,1740952232923,-500.0,0.00021917,2]
[355177835,1740952232933,-500.0,0.00021917,2]
[355177836,1740952232943,-500.0,0.00021917,2]
[355177837,1740952232953,-500.0,0.00021917,2]
[355177838,1740952232963,-500.0,0.00021917,2]
[355177839,1740952232973,-500.0,0.00021917,2]
[355177840,1740952232986,-500.0,0.00021917,2]
[355177841,1740952232996,-500.0,0.00021917,2]
[355177842,1740952233005,-500.0,0.00021917,2]
[355177843,1740952233016,-500.0,0.00021917,2]
[355177844,1740952233026,-500.0,0.00021917,2]
[355177845,1740952233036,-500.0,0.00021917,2]
[355177846,1740952233046,-500.0,0.00021917,2]
[355177847,1740952233056,-561.97,0.00021917,2]
[355177848,1740952233067,-500.0,0.00021917,2]
[355177849,1740952233077,-500.0,0.00021917,2]
[355177850,1740952233087,-500.0,0.00021917,2]
[355177851,1740952233097,-500.0,0.00021917,2]
[355177852,1740952233107,-500.0,0.00021917,2]
[355177853,1740952233118,-500.0,0.00021917,2]
[355177854,1740952233128,-500.0,0.00021917,2]
[355177855,1740952233139,-500.0,0.00021917,2]
[355177856,1740952233150,-500.0,0.00021917,2]
[355177857,1740952233160,-500.0,0.00021917,2]
[355177858,1740952233170,-500.0,0.00021917,2]
[355177859,1740952233181,-500.0,0.00021917,2]
[355177860,1740952233191,-500.0,0.00021917,2]
[355177861,1740952233201,-500.0,0.00021917,2]
[355177862,1740952233211,-500.0,0.00021917,2]
[355177863,1740952233222,-500.0,0.00021917,2]
[355177864,1740952233234,-500.0,0.00021917,2]
[355177865,1740952233245,-216.76154919,0.00021917,2]
[355177866,1740952233255,-1000.0,0.00021917,2]
[355177867,1740952233266,-500.0,0.00021917,2]
[355177868,1740952233277,-244.94,0.00021917,2]
[355177869,1740952233287,-500.0,0.00021917,2]
[355177870,1740952233298,-500.0,0.00021917,2]
[355177871,1740952233308,-500.0,0.00021917,2]
[355177872,1740952233319,-500.0,0.00021917,2]
[355177873,1740952233329,-500.0,0.00021917,2]
[355177874,1740952233339,-500.0,0.00021917,2]
[355177875,1740952233350,-606.27578356,0.00021917,2]
[355177876,1740952233360,-500.0,0.00021917,2]
[355177877,1740952233370,-500.0,0.00021917,2]
[355177878,1740952233380,-500.0,0.00021917,2]
[355177879,1740952233389,-500.0,0.00021917,2]
[355177880,1740952233400,-500.0,0.00021917,2]
[355177881,1740952233410,-500.0,0.00021917,2]
[355177882,1740952233420,-500.0,0.00021917,2]
[355177883,1740952233431,-1000.0,0.00021917,5]
[355177884,1740952233441,-500.0,0.00021917,2]
[355177885,1740952233450,-394.30865815,0.00021917,2]
[355177886,1740952233460,-500.0,0.00021917,2]
[355177887,1740952233470,-500.0,0.00021917,2]
[355177888,1740952233481,-199.89556651,0.00021917,2]
[355177889,1740952233491,-500.0,0.00021917,2]
[355177890,1740952233501,-500.0,0.00021917,2]
[355177891,1740952233511,-500.0,0.00021917,2]
[355177892,1740952233520,-500.0,0.00021917,2]
[355177893,1740952233531,-500.0,0.00021917,2]
[355177894,1740952233542,-500.0,0.00021917,2]
[355177895,1740952233552,-500.0,0.00021917,2]
[355177896,1740952233562,-500.0,0.00021917,2]
[355177897,1740952233573,-500.0,0.00021917,2]
[355177898,1740952233583,-500.0,0.00021917,2]
[355177899,1740952233592,-512.96,0.00021917,2]
[355177900,1740952233603,-500.0,0.00021917,2]
[355177901,1740952233612,-500.0,0.00021917,2]
[355177902,1740952233622,-500.0,0.00021917,2]
[355177903,1740952233632,-500.0,0.00021917,2]
[355177904,1740952233643,-233.16408207,0.00021949,2]
[355177905,1740952233653,-151.0,0.00021949,2]
[355177906,1740952233663,-19629.85965445,0.0002195,3]
[355177907,1740952233673,-164.19,0.00022,7]
[355177908,1740952233683,-3705.14244153,0.00022126,2]
[355177909,1740952233693,-250.0,0.00022191,2]
[355177910,1740952233704,-500.0,0.00022191,2]
[355177911,1740952233714,-500.0,0.00022191,2]
[355177912,1740952233725,-358.57637591,0.00022191,2]
[355177913,1740952233737,-500.0,0.00022191,2]
[355177914,1740952233747,-426.05244914,0.00022191,2]
[355177915,1740952233758,-357.69896386,0.00022191,2]
[355177916,1740952233769,-500.0,0.00022191,2]
[355177917,1740952233779,-500.0,0.00022191,2]
[355177918,1740952233789,-241.87324872,0.00022191,2]
[355177919,1740952233800,-500.0,0.00022191,2]
[355177920,1740952233810,-500.0,0.00022191,2]
[355177921,1740952233820,-500.0,0.00022191,2]
[355177922,1740952233834,-500.0,0.00022191,2]
[355177923,1740952233844,-500.0,0.00022191,2]
[355177924,1740952233854,-500.0,0.00022191,2]
[355177925,1740952233864,-500.0,0.00022191,2]
[355177926,1740952233875,-500.0,0.00022191,2]
[355177927,1740952233886,-1000.0,0.00022191,2]
[355177928,1740952233896,-613.89389022,0.00022191,2]
[355177929,1740952233905,-500.0,0.00022191,2]
[355177930,1740952233916,-613.97340472,0.00022191,2]
[355177931,1740952233927,-312.6752793,0.00022191,2]
[355177932,1740952233938,-392.87090105,0.00022191,2]
[355177933,1740952233949,-500.0,0.00022191,2]
[355177934,1740952233959,-500.0,0.00022191,2]
[355177935,1740952233970,-500.0,0.00022191,2]
[355177936,1740952233980,-500.0,0.00022191,2]
[355177937,1740952233990,-500.0,0.00022191,2]
[355177938,1740952234000,-500.0,0.00022191,2]
[355177939,1740952234010,-500.0,0.00022191,2]
[355177940,1740952234020,-500.0,0.00022191,2]
[355177941,1740952234032,-500.0,0.00022191,2]
[355177942,1740952234042,-500.0,0.00022191,2]
[355177943,1740952234052,-500.0,0.00022191,2]
[355177944,1740952234063,-479.99,0.00022191,2]
[355177945,1740952234073,-512.96,0.00022191,2]
[355177946,1740952234083,-500.0,0.00022191,2]
[355177947,1740952234094,-634.35144864,0.00022191,2]
[355177948,1740952234104,-500.0,0.00022191,2]
[355177949,1740952234114,-151.0,0.000222,10]
[355177950,1740952234124,-202.10072579,0.00022204,3]
[355177951,1740952234134,-206.12748399,0.00022204,3]
[355177952,1740952234144,-351.0,0.00022204,3]